bitfinex-derivatives/quotes_ETHF0:USTF0_20260201
["timestamp","ask_amount","ask_price","bid_price","bid_amount"]
[1769982617358,2.50526623,2300.0,2299.0,3.87714228]
[1769982617758,1.58028955,2299.9,2299.0,3.87714228]
[1769982618156,2.50548587,2300.6,2299.0,3.87714228]
[1769982618357,2.50548587,2300.6,2298.9,9.00858017]
[1769982618358,2.50548587,2300.5,2299.4,4.09481228]
[1769982618554,4.08577542,2300.4,2299.5,2.552]
[1769982618863,4.08577542,2300.4,2299.5,6.43469852]
[1769982619064,1.58028955,2300.2,2299.5,6.43469852]
[1769982619263,0.00439525,2300.6,2299.5,6.65235852]
[1769982619464,1.58028955,2300.5,2299.6,3.87714228]
[1769982619963,1.58028955,2300.4,2299.7,3.87714228]
[1769982620164,1.58028955,2300.5,2299.7,3.87714228]
[1769982620360,1.5846848,2300.6,2299.8,3.87714228]
[1769982620563,0.00439525,2300.6,2299.9,8.01076228]
[1769982620959,2.50548587,2300.1,2299.9,0.35313805]
[1769982621166,2.25687025,2299.9,2299.5,2.55755624]
[1769982621362,2.25687025,2299.5,2298.7,6.35097678]
[1769982621559,2.25687025,2299.5,2298.8,2.552]
[1769982621764,1.58028955,2298.9,2298.6,3.916]
[1769982622065,0.21761,2300.1,2297.8,3.916]
[1769982622066,2.14579904,2299.2,2297.8,3.916]
[1769982622260,2.14938995,2299.2,2297.9,2.4738345]
[1769982623962,0.00359091,2299.2,2298.2,2.4738345]
[1769982624163,0.00359091,2299.2,2298.4,2.4738345]
[1769982624563,2.11658669,2299.9,2298.4,2.4738345]
[1769982624765,2.11658669,2300.4,2298.6,6.35097678]
[1769982624971,2.11658669,2300.4,2298.8,2.4738345]
[1769982625170,2.11658669,2300.4,2298.9,5.0258345]
[1769982625470,2.11658669,2300.4,2299.0,2.4738345]
[1769982625667,2.12063253,2300.4,2299.0,2.4738345]
[1769982626067,2.12063253,2300.4,2298.9,6.42914228]
[1769982626269,2.12063253,2300.4,2298.9,2.552]
[1769982627671,2.12063253,2300.4,2299.0,2.4738345]
[1769982628063,2.12063253,2300.4,2298.9,2.552]
[1769982628267,2.12063253,2300.4,2298.7,2.4738345]
[1769982628268,2.12063253,2300.4,2298.7,3.87714228]
[1769982628569,2.12063253,2300.4,2298.7,2.552]
[1769982630069,2.33821253,2300.4,2298.7,2.552]
[1769982630271,2.14014224,2300.2,2298.7,2.552]
[1769982630470,2.14014224,2300.2,2298.8,2.4738345]
[1769982631268,2.14014224,2300.2,2298.9,2.4738345]
[1769982631567,0.00404584,2300.4,2299.2,2.4738345]
[1769982631775,2.14418808,2300.4,2299.2,2.4738345]
[1769982632673,2.1399174,2300.8,2299.6,2.4738345]
[1769982632873,2.1399174,2300.8,2299.8,2.4738345]
[1769982633176,2.1399174,2300.8,2299.7,2.552]
[1769982633773,2.14448227,2300.8,2299.7,2.55606832]
[1769982636477,2.14448227,2300.8,2299.8,2.4738345]
[1769982641777,2.14448227,2300.8,2299.7,0.00406832]
[1769982641984,2.09059026,2300.6,2299.2,2.38659852]
[1769982642378,2.09059026,2300.6,2299.3,2.38659852]
[1769982642578,2.09059026,2300.6,2299.4,2.38659852]
[1769982643085,2.09059026,2300.6,2299.4,2.39085319]
[1769982643285,0.00456487,2300.8,2299.5,2.38659852]
[1769982643483,2.09515513,2300.8,2299.5,2.38659852]
[1769982643784,2.09515513,2300.8,2299.5,4.93859852]
[1769982644084,2.09515513,2300.8,2299.6,2.38659852]
[1769982645679,2.09515513,2300.8,2299.5,2.552]
[1769982648687,2.09515513,2300.8,2299.5,5.01846748]
[1769982649688,0.00456487,2300.8,2299.6,2.46646748]
[1769982649889,6.45068476,2301.3,2299.6,2.46646748]
[1769982649890,2.06375942,2301.4,2300.1,2.46646748]
[1769982650088,38.31027851,2301.6,2300.3,2.46646748]
[1769982650288,4.808,2301.8,2300.4,2.68404748]
[1769982650485,2.05702527,2302.0,2300.6,2.46646748]
[1769982650682,2.05702527,2301.9,2300.6,2.46646748]
[1769982650982,2.06026744,2301.9,2300.6,2.46646748]
[1769982653984,0.00324217,2301.9,2300.8,2.46646748]
[1769982654187,2.04117003,2302.3,2301.0,2.46646748]
[1769982655090,2.04574901,2302.3,2300.9,2.551]
[1769982655388,2.04574901,2302.3,2300.9,5.01746748]
[1769982656485,2.04574901,2302.3,2301.0,2.46646748]
[1769982659390,0.00457898,2302.3,2301.0,2.46646748]
[1769982660792,0.00457898,2302.3,2301.0,5.0598828]
[1769982660987,1.98604624,2302.1,2300.9,2.46646748]
[1769982662386,1.98604624,2302.1,2300.6,2.46646748]
[1769982663289,1.98604624,2302.1,2300.2,5.09258017]
[1769982663290,1.98546083,2301.7,2300.2,2.46646748]
[1769982663491,1.98546083,2301.5,2300.2,2.46646748]
[1769982663686,2.20293083,2301.5,2300.2,2.46646748]
[1769982663888,1.98546083,2301.3,2299.9,2.46646748]
[1769982664799,0.2175,2301.2,2299.9,2.46646748]
[1769982665095,1.98188679,2300.6,2299.4,2.47072215]
[1769982665292,4.915,2300.5,2299.4,2.47072215]
[1769982666297,0.00358725,2300.6,2299.4,2.47072215]
[1769982669799,2.17086449,2300.6,2299.4,0.00425467]
[1769982671399,2.17086449,2300.6,2299.4,2.46678838]
[1769982672404,1.97658557,2300.5,2298.8,2.59341532]
[1769982672697,1.97658557,2300.5,2298.4,6.40142485]
[1769982672698,2.19426557,2299.4,2298.0,2.46253371]
[1769982672905,6.89258557,2299.3,2298.0,2.46253371]
[1769982673600,3.915,2299.7,2298.3,2.46253371]
[1769982673904,3.915,2299.7,2298.5,2.46253371]
[1769982674404,6.83167832,2300.5,2298.6,2.68027371]
[1769982674904,1.97867832,2300.4,2298.6,2.68027371]
[1769982675402,0.00358725,2300.6,2299.1,2.46253371]
[1769982675605,0.00358725,2300.6,2299.3,2.46253371]
[1769982675997,4.70276334,2300.6,2299.0,2.46253371]
[1769982676202,1.97713377,2300.5,2299.0,2.46253371]
[1769982676500,5.86313377,2300.4,2299.0,2.46253371]
[1769982676894,1.97713377,2300.3,2299.0,2.46253371]
[1769982677099,1.97713377,2300.3,2298.7,2.46253371]
[1769982677495,2.19477377,2299.8,2298.7,2.46253371]
[1769982677702,1.97713377,2299.5,2298.1,2.46253371]
[1769982678002,2.19485377,2298.9,2297.8,2.46253371]
[1769982678197,1.97595617,2298.8,2297.6,3.916]
[1769982679004,1.98145181,2298.8,2297.6,3.9211228]
[1769982679200,0.00549564,2298.8,2297.7,2.46253371]
[1769982679707,0.00549564,2298.8,2297.9,2.46253371]
[1769982679914,1.91158638,2299.2,2297.9,2.46253371]
[1769982680105,1.91158638,2299.2,2297.6,0.0051228]
[1769982680305,0.2177,2299.1,2297.6,0.0051228]
[1769982680504,1.91158638,2298.6,2297.1,2.46253371]
[1769982680703,1.91158638,2298.4,2297.1,2.46253371]
[1769982681406,1.91618937,2298.4,2297.1,2.4670618]
[1769982681607,2.13395937,2298.4,2297.1,2.4670618]
[1769982682010,0.00460299,2298.4,2297.1,2.4670618]
[1769982682504,0.21767,2299.5,2297.6,2.46253371]
[1769982682708,3.917,2299.6,2297.7,2.46253371]
[1769982682709,1.90759206,2299.2,2297.7,2.46253371]
[1769982682912,2.12532206,2298.8,2297.3,2.46253371]
[1769982683809,2.1286612,2298.8,2297.3,2.46253371]
[1769982686712,0.00333914,2298.8,2297.3,2.46253371]
[1769982687816,0.00333914,2298.8,2297.7,2.46253371]
[1769982689018,3.917,2299.6,2297.9,2.46253371]
[1769982690011,5.91790616,2299.6,2297.9,2.46253371]
[1769982690216,5.92213903,2299.6,2297.9,2.46253371]
[1769982690418,2.00090616,2299.5,2297.9,2.46253371]
[1769982690719,2.00090616,2299.3,2297.9,2.46253371]
[1769982692119,0.21769,2299.4,2297.9,2.46253371]
[1769982693115,2.01359141,2299.2,2297.9,2.46253371]
[1769982693314,2.23130141,2299.2,2297.6,2.46253371]
[1769982693613,0.21775,2298.9,2297.6,2.46253371]
[1769982693814,2.01359141,2299.2,2297.6,2.46253371]
[1769982693815,2.23134141,2298.8,2297.6,2.46253371]
[1769982694021,2.23134141,2298.8,2297.2,2.46253371]
[1769982695211,2.22960387,2298.2,2297.1,2.4670618]
[1769982695618,0.21781,2298.2,2297.1,2.4670618]
[1769982696018,2.03210227,2298.0,2297.1,0.00452809]
[1769982696221,2.24993227,2298.0,2296.6,2.46253371]
[1769982696417,2.03210227,2297.7,2296.6,2.46253371]
[1769982697019,0.21786,2297.7,2296.6,2.46253371]
[1769982697213,0.22339013,2297.7,2296.6,2.46582116]
[1769982699621,2.04179931,2297.4,2296.2,2.27702026]
[1769982700823,2.04179931,2297.4,2296.2,2.28143831]
[1769982701023,2.04179931,2297.4,2295.9,2.27702026]
[1769982701329,2.0476186,2296.9,2295.5,2.27702026]
[1769982701528,2.2655586,2296.8,2295.5,2.27702026]
[1769982702025,2.05079884,2296.4,2295.1,2.27702026]
[1769982702926,3.92,2296.7,2295.3,2.27702026]
[1769982703229,2.05079884,2297.0,2295.3,2.28073382]
[1769982703628,2.05079884,2297.3,2295.5,2.49508026]
[1769982703833,2.05079884,2297.4,2295.7,2.27702026]
[1769982704933,3.92,2297.6,2296.1,2.49503026]
[1769982705333,0.00553013,2297.7,2296.6,2.27702026]
[1769982705532,0.00553013,2297.7,2296.6,6.19702026]
[1769982705732,0.00553013,2297.7,2296.7,2.36664682]
[1769982706133,38.56580583,2299.1,2297.2,2.36664682]
[1769982706430,3.921,2299.6,2297.9,2.58447682]
[1769982706636,2.03080431,2299.5,2298.1,2.36664682]
[1769982707135,2.03080431,2299.5,2298.1,2.36983095]
[1769982707136,0.00446515,2299.5,2298.1,2.36983095]
[1769982707628,2.03526946,2299.5,2298.1,2.36983095]
[1769982708435,0.00446515,2299.5,2298.1,2.36983095]
[1769982709237,26.23325657,2300.1,2298.7,2.36664682]
[1769982709537,2.50609459,2301.3,2299.6,2.58127945]
[1769982709731,2.50609459,2301.3,2299.5,3.87714228]
[1769982709732,2.50609459,2301.3,2299.5,2.58127945]
[1769982709937,2.50609459,2301.0,2299.3,2.58127945]
[1769982710144,2.50609459,2300.9,2299.1,6.474]
[1769982710334,2.51168079,2300.9,2299.1,6.474]
[1769982710528,2.50609459,2300.6,2299.1,6.474]
[1769982710939,2.50609459,2300.5,2299.1,6.474]
[1769982711136,2.50609459,2300.0,2298.4,5.35306945]
[1769982711339,2.50609459,2300.0,2298.4,9.27206945]
[1769982711540,2.50609459,2300.0,2298.5,2.58127945]
[1769982711733,2.50609459,2300.0,2298.4,9.27206945]
[1769982711939,2.50609459,2299.8,2298.4,6.473]
[1769982712438,2.50609459,2299.7,2298.4,6.473]
[1769982713336,2.50609459,2300.5,2298.4,9.05427945]
[1769982714140,2.50609459,2300.5,2298.5,2.58127945]
[1769982714440,2.50609459,2300.3,2298.5,2.58127945]
[1769982714640,2.50609459,2300.3,2298.6,6.473]
[1769982715037,2.50609459,2300.1,2298.6,6.473]
[1769982719740,2.50609459,2299.7,2298.5,2.553]
[1769982720040,2.50609459,2299.7,2298.6,2.553]
[1769982720236,2.50609459,2299.6,2298.6,2.553]
[1769982720443,2.50609459,2299.6,2298.2,2.58127945]
[1769982720746,2.50609459,2299.1,2298.1,0.00318413]
[1769982721047,2.5116605,2299.1,2298.1,0.00318413]
[1769982721245,2.50609459,2299.0,2298.1,0.00318413]
[1769982721444,0.00556591,2299.1,2298.1,0.00318413]
[1769982721837,3.918,2300.1,2298.1,0.00318413]
[1769982721838,2.50609459,2299.9,2298.1,0.00318413]
[1769982722044,2.50609459,2299.9,2298.4,0.21779]
[1769982722341,2.50609459,2300.9,2299.4,0.21768]
[1769982722546,2.50609459,2301.9,2299.9,0.21764]
[1769982722941,2.51106791,2301.9,2300.0,3.4835033]
[1769982723143,2.51106791,2301.9,2300.1,2.58127945]
[1769982723339,2.50609459,2301.8,2300.2,6.471]
[1769982724048,2.50609459,2301.6,2300.3,6.471]
[1769982724237,2.50609459,2301.4,2300.3,6.471]
[1769982724640,2.50609459,2301.0,2300.0,3.917]
[1769982724949,2.50609459,2301.7,2300.2,0.21761]
[1769982725242,0.00497332,2301.9,2300.2,2.553]
[1769982725243,2.50609459,2301.5,2300.2,2.553]
[1769982725444,2.50609459,2301.3,2299.9,0.00347095]
[1769982725643,2.50609459,2301.3,2300.0,2.552]
[1769982725844,2.50609459,2301.1,2300.0,2.552]
[1769982726046,2.50609459,2301.1,2299.9,0.00347095]
[1769982726246,2.50609459,2301.0,2299.9,0.00347095]
[1769982726847,2.50609459,2300.8,2299.9,0.00347095]
[1769982727147,2.50609459,2300.6,2299.5,6.468]
[1769982727944,2.50609459,2300.6,2299.5,6.47146283]
[1769982728751,2.50415419,2301.4,2299.5,6.47146283]
[1769982729052,2.50415419,2301.2,2299.5,9.95496613]
[1769982729247,2.50415419,2301.2,2299.5,0.00346283]
[1769982729447,2.50415419,2301.0,2299.6,6.468]
[1769982730051,2.50415419,2300.7,2299.5,6.47146283]
[1769982730242,2.50415419,2300.6,2299.5,6.47146283]
[1769982730848,11.20415419,2300.6,2299.5,6.47146283]
[1769982731549,2.50415419,2301.8,2299.5,6.68914283]
[1769982731753,2.50415419,2301.6,2299.6,0.21767]
[1769982731952,2.50415419,2301.6,2299.5,6.47146283]
[1769982732155,2.50415419,2301.6,2299.9,0.21764]
[1769982733350,2.50415419,2301.6,2299.9,2.79891945]
[1769982734459,2.50415419,2301.6,2300.1,2.58127945]
[1769982734957,11.20415419,2301.5,2300.1,2.58127945]
[1769982735156,2.50415419,2301.5,2300.1,2.58127945]
[1769982735454,11.20415419,2301.4,2300.2,2.58127945]
[1769982735652,2.552,2302.3,2300.2,2.58127945]
[1769982735653,0.00497332,2301.9,2300.7,2.58127945]
[1769982735854,0.21738,2302.7,2300.6,3.87714228]
[1769982735855,3.915,2303.1,2301.3,2.32831345]
[1769982736157,8.7,2303.0,2301.4,2.551]
[1769982736357,3.915,2303.1,2301.4,4.87931345]
[1769982736555,8.7,2302.7,2301.4,4.87931345]
[1769982736753,0.21734,2303.2,2301.5,2.32831345]
[1769982736949,8.7,2303.0,2301.5,2.32831345]
[1769982737148,0.21734,2303.2,2301.5,2.32831345]
[1769982737149,8.7,2302.9,2301.5,2.32831345]
[1769982737658,0.00523504,2302.9,2301.5,2.33346351]
[1769982737854,11.00962933,2302.6,2301.5,2.33346351]
[1769982738249,2.31486437,2302.9,2301.5,2.33346351]
[1769982738456,8.7,2302.8,2301.6,2.32831345]
[1769982738859,2.31486437,2302.9,2301.6,2.32831345]
[1769982738860,8.7,2302.7,2301.6,2.32831345]
[1769982739060,8.7,2302.8,2301.6,2.32831345]
[1769982739556,0.00523504,2302.9,2301.8,2.32831345]
[1769982739751,0.00523504,2302.9,2301.9,3.914]
[1769982739958,8.7,2302.8,2301.9,3.914]
[1769982740356,8.7,2302.7,2301.9,3.914]
[1769982740560,0.00523504,2302.9,2301.9,6.24231345]
[1769982740952,0.00523504,2302.9,2302.0,2.32831345]
[1769982741159,8.70523504,2302.9,2302.1,2.551]
[1769982741357,8.7,2302.8,2302.1,2.551]
[1769982741759,2.50415419,2303.5,2302.3,2.93685252]
[1769982741961,1.13496181,2303.5,2302.0,2.58127945]
[1769982742159,1.13496181,2303.5,2301.9,0.21745]
[1769982742364,2.71943252,2303.7,2301.5,0.00515006]
[1769982742664,0.21734,2303.2,2301.5,1.40796847]
[1769982742864,0.21734,2303.2,2301.6,2.55]
[1769982743354,2.72445521,2303.7,2301.5,1.40796847]
[1769982743355,2.71943252,2302.8,2301.5,0.00515006]
[1769982743553,2.93680252,2302.8,2301.5,0.00515006]
[1769982743753,0.21739,2302.6,2300.9,2.55]
[1769982743960,2.30962933,2302.5,2300.9,2.55]
[1769982744159,2.30962933,2302.3,2300.5,4.13059]
[1769982744357,2.52704933,2302.3,2300.7,2.55]
[1769982744562,0.21743,2302.2,2300.5,2.55]
[1769982744758,2.30962933,2302.1,2300.5,2.55358333]
[1769982751163,2.30962933,2302.1,2300.6,1.4513415]
[1769982751369,2.30962933,2302.1,2300.7,2.58127945]
[1769982751568,2.30962933,2302.1,2300.6,2.58127945]
[1769982752164,2.30962933,2302.1,2300.9,1.4675118]
[1769982752369,2.30962933,2302.4,2301.3,1.4675118]
[1769982752668,2.30962933,2302.4,2301.3,2.55]
[1769982753171,2.30962933,2302.4,2301.3,4.0175118]
[1769982753372,2.30962933,2302.4,2301.3,2.55]
[1769982753574,2.30962933,2302.4,2301.0,2.58127945]
[1769982753870,2.52703933,2302.4,2301.0,8.15481035]
[1769982754072,2.52703933,2302.4,2301.1,2.58127945]
[1769982755465,2.30962933,2302.4,2301.1,6.65295341]
[1769982755673,2.30962933,2302.4,2301.0,4.07167396]
[1769982755875,2.30962933,2301.8,2300.5,0.00358333]
[1769982756071,2.5301895,2301.8,2300.5,0.00358333]
[1769982759972,2.67435757,2301.4,2299.9,2.58127945]
[1769982760277,2.67435757,2301.4,2299.9,2.55]
[1769982760672,2.45684757,2301.4,2300.1,1.47992546]
[1769982760873,2.45684757,2301.4,2300.1,8.13810578]
[1769982761068,2.45684757,2301.4,2300.2,1.47992546]
[1769982761270,2.45684757,2301.7,2300.6,1.47992546]
[1769982761471,0.00309017,2301.8,2300.7,12.05210578]
[1769982761673,2.45684757,2301.7,2300.7,10.57218032]
[1769982762082,2.45684757,2301.7,2300.7,12.052493]
[1769982762678,0.00309017,2301.8,2300.8,4.06159213]
[1769982762981,0.00309017,2301.8,2300.9,1.48031268]
[1769982763978,0.00309017,2301.8,2301.1,1.48201507]
[1769982764185,0.00309017,2301.8,2301.2,2.551]
[1769982765885,0.00309017,2301.8,2301.2,4.02765182]
[1769982766086,2.49128349,2302.4,2301.2,4.02765182]
[1769982766386,2.49128349,2302.4,2301.2,2.551]
[1769982766980,2.49688807,2302.4,2301.2,2.551]
[1769982768387,2.70871349,2302.2,2300.7,2.58127945]
[1769982768586,2.70871349,2302.2,2300.8,6.64949197]
[1769982768784,2.70871349,2302.2,2300.7,8.12207423]
[1769982768986,2.70871349,2302.2,2300.8,2.58127945]
[1769982769185,2.70871349,2302.2,2300.8,6.64949197]
[1769982771188,2.70871349,2302.2,2300.9,4.06821252]
[1769982772182,2.70871349,2302.2,2301.0,4.06821252]
[1769982772388,2.70871349,2302.2,2300.9,2.58127945]
[1769982772589,2.70871349,2302.2,2301.0,4.08024755]
[1769982772794,2.49128349,2302.2,2301.1,4.03684865]
[1769982773091,2.49128349,2302.2,2301.2,8.13222146]
[1769982773291,2.49128349,2302.2,2301.3,6.66137281]
[1769982773491,2.49128349,2302.2,2301.3,2.58127945]
[1769982773688,0.00560458,2302.4,2301.5,2.58127945]
[1769982773893,2.49688807,2302.4,2301.4,4.0521281]
[1769982774093,2.49688807,2302.4,2301.5,1.46896532]
[1769982774293,2.49688807,2302.4,2301.6,2.568]
[1769982774494,2.49128349,2302.2,2301.3,2.58127945]
[1769982774794,2.49128349,2302.2,2301.0,2.58127945]
[1769982775997,2.49128349,2301.9,2300.9,2.58127945]
[1769982780598,2.49128349,2301.9,2301.0,4.08344852]
[1769982780794,2.49128349,2301.9,2300.9,2.58127945]
[1769982781501,2.49128349,2302.2,2301.1,1.40476964]
[1769982781701,2.49128349,2302.2,2301.2,9.23620021]
[1769982781901,2.49128349,2302.2,2301.3,4.08192076]
[1769982782101,2.49128349,2302.2,2301.2,5.15427945]
[1769982782401,2.49128349,2302.2,2301.3,6.66318585]
[1769982782597,6.45068476,2303.0,2301.5,1.41270256]
[1769982782797,6.45068476,2303.6,2302.0,5.02929621]
[1769982782997,9.17392462,2303.1,2301.5,2.58127945]
[1769982783296,2.72323986,2302.5,2300.9,2.11490945]
[1769982783501,0.21747,2301.8,2300.5,2.44801676]
[1769982783700,0.22176995,2301.8,2300.5,2.4511553]
[1769982784000,2.93606802,2301.8,2300.5,2.4511553]
[1769982784497,2.93606802,2301.8,2300.6,4.07685996]
[1769982784702,2.93606802,2301.8,2300.6,6.52487672]
[1769982784703,2.49128349,2301.7,2300.6,6.52487672]
[1769982784903,0.00429995,2301.8,2300.7,6.52470049]
[1769982785103,0.00429995,2301.8,2300.8,2.44801676]
[1769982785699,0.00429995,2301.8,2301.0,2.44801676]
[1769982785900,2.49128349,2301.7,2300.8,4.07652687]
[1769982786102,5.20558156,2301.4,2300.6,4.07652687]
[1769982786303,2.49128349,2301.4,2300.5,0.00313854]
[1769982786505,2.49128349,2301.4,2300.6,4.07728121]
[1769982786804,5.20558156,2301.4,2300.5,0.00313854]
[1769982787002,2.49128349,2301.3,2300.5,0.00313854]
[1769982787896,2.43779894,2301.6,2300.5,2.43479478]
[1769982788303,2.43779894,2301.6,2300.6,6.50844866]
[1769982790005,2.43779894,2301.6,2300.6,6.5083071]
[1769982790205,2.43779894,2301.6,2300.6,2.43165624]
[1769982790504,2.43779894,2301.5,2300.5,0.00313854]
[1769982790897,0.00429995,2301.8,2300.7,2.43165624]
[1769982790898,2.44209889,2301.8,2300.7,2.43165624]
[1769982791301,2.44209889,2301.8,2300.5,3.88028082]
[1769982791302,2.44209889,2301.8,2300.9,2.43165624]
[1769982791505,0.00429995,2301.8,2301.1,2.43165624]
[1769982793108,6.35179894,2302.4,2301.3,2.43165624]
[1769982793304,6.35179894,2302.4,2301.5,2.43165624]
[1769982793702,2.71429807,2302.3,2301.5,2.43165624]
[1769982793903,8.93951114,2303.0,2301.7,2.43165624]
[1769982794105,2.44304364,2303.0,2301.9,2.43165624]
[1769982794308,2.43779894,2302.5,2301.6,2.581]
[1769982794806,2.43779894,2302.3,2301.5,3.87714228]
[1769982795010,2.43779894,2302.3,2301.3,5.01365624]
[1769982795311,5.15209701,2302.2,2301.4,4.07632772]
[1769982795614,2.43779894,2302.2,2301.3,5.01365624]
[1769982795808,2.71429807,2302.1,2301.4,4.07623681]
[1769982796004,5.15209701,2302.2,2301.3,5.01365624]
[1769982796209,2.43779894,2302.5,2301.4,6.50782226]
[1769982796406,2.43779894,2302.8,2301.6,2.43165624]
[1769982796603,2.43779894,2302.8,2301.5,4.0758997]
[1769982796604,2.43779894,2302.8,2301.8,2.43165624]
[1769982797012,5.15209701,2302.6,2301.6,4.07065274]
[1769982797213,2.43779894,2302.6,2301.5,8.89379852]
[1769982797414,2.43779894,2302.6,2301.6,4.06869546]
[1769982797715,2.43779894,2302.6,2301.7,4.06803117]
[1769982797914,2.43779894,2302.6,2301.8,2.43165624]
[1769982798216,5.15209701,2302.6,2301.8,2.43165624]
[1769982798416,2.71429807,2302.5,2301.8,2.43165624]
[1769982799210,0.0052447,2303.0,2301.8,2.43165624]
[1769982799211,2.44304364,2303.0,2301.8,2.43165624]
[1769982799414,2.71429807,2302.8,2301.8,2.43165624]
[1769982799815,2.71429807,2302.7,2301.8,2.43165624]
[1769982800117,5.15734171,2303.0,2301.8,2.43165624]
[1769982800317,2.71429807,2302.9,2301.9,2.43165624]
[1769982800717,2.71429807,2302.8,2301.9,2.43165624]
[1769982800920,2.44304364,2303.0,2301.9,2.43165624]
[1769982801619,0.0052447,2303.0,2301.9,2.43165624]
[1769982801820,2.44304364,2303.0,2302.1,2.43165624]
[1769982802221,2.43779894,2302.9,2301.9,4.06487952]
[1769982802416,2.71429807,2302.3,2301.4,6.30879852]
[1769982802614,2.71429807,2302.3,2301.1,3.913]
[1769982802615,2.71429807,2302.2,2301.1,4.05481835]
[1769982802818,2.43779894,2301.7,2300.6,8.89779852]
[1769982803022,2.71429807,2301.6,2300.6,10.36092909]
[1769982803322,5.15209701,2301.6,2300.6,12.94992909]
[1769982803514,2.71429807,2301.5,2300.6,12.94992909]
[1769982803822,2.71429807,2301.5,2300.6,9.07278681]
[1769982804025,2.43779894,2301.2,2300.5,0.00313854]
[1769982804218,2.43779894,2300.8,2300.0,2.43165624]
[1769982804419,5.15209701,2301.0,2300.0,2.43165624]
[1769982804723,2.71429807,2301.0,2299.9,2.43165624]
[1769982805115,2.43779894,2301.1,2299.9,2.43520605]
[1769982805321,0.00507452,2301.2,2299.9,0.00354981]
[1769982805322,5.15209701,2300.6,2299.9,0.00354981]
[1769982805515,0.00507452,2301.2,2299.9,2.43520605]
[1769982805516,2.44287346,2301.2,2299.9,2.43520605]
[1769982805720,0.00507452,2301.2,2300.1,2.43165624]
[1769982805920,0.00507452,2301.2,2300.3,2.43165624]
[1769982806418,0.00193598,2301.2,2300.3,2.43165624]
[1769982807926,2.43779894,2302.1,2300.6,2.43165624]
[1769982808127,2.43779894,2301.9,2300.6,2.43165624]
[1769982808328,2.43779894,2301.7,2300.6,2.43165624]
[1769982808826,2.71429807,2301.5,2300.6,2.43165624]
[1769982809026,2.43779894,2301.4,2300.4,7.92711236]
[1769982809222,5.15209701,2301.2,2300.1,5.02765624]
[1769982809424,2.43779894,2301.2,2300.1,2.43165624]
[1769982809622,5.15209701,2301.0,2300.1,5.02865624]
[1769982809823,2.43779894,2301.0,2300.1,5.02865624]
[1769982810024,2.71429807,2300.9,2300.1,5.02865624]
[1769982810629,5.15209701,2300.2,2299.9,0.00354981]
[1769982810823,2.43779894,2300.2,2299.1,2.43165624]
[1769982811024,2.71429807,2300.1,2299.1,2.43165624]
[1769982811227,2.43779894,2300.7,2299.1,2.43165624]
[1769982811426,2.43779894,2300.6,2299.1,2.43165624]
[1769982811627,0.21757,2300.8,2299.1,2.43165624]
[1769982811628,2.43779894,2300.5,2299.1,2.43165624]
[1769982811829,2.43779894,2300.5,2299.1,2.43636324]
[1769982811830,2.43779894,2300.4,2299.1,2.43636324]
[1769982812033,2.43779894,2300.8,2299.2,2.43165624]
[1769982812626,6.35179894,2301.1,2299.4,2.43165624]
[1769982812831,2.43779894,2301.0,2299.5,2.43165624]
[1769982813032,2.43779894,2300.8,2299.6,5.03265624]
[1769982813329,5.15209701,2300.4,2299.6,2.601]
[1769982813631,2.71429807,2300.2,2299.6,2.601]
[1769982814029,2.71429807,2300.1,2299.6,2.601]
[1769982814232,2.71429807,2300.2,2299.6,2.601]
[1769982814630,2.71429807,2300.1,2299.6,2.601]
[1769982814831,2.71429807,2300.2,2299.6,2.601]
[1769982815335,2.43779894,2301.0,2299.7,2.43165624]
[1769982815535,2.43779894,2300.7,2299.7,2.43165624]
[1769982816037,2.43779894,2301.3,2299.8,2.43165624]
[1769982816243,2.43779894,2301.6,2299.9,2.43165624]
[1769982816533,2.43779894,2301.6,2300.0,2.43165624]
[1769982816934,5.15209701,2301.6,2300.0,2.43165624]
[1769982817134,2.43779894,2301.5,2300.0,2.43165624]
[1769982818127,0.00535927,2301.7,2300.2,3.87714228]
[1769982818433,2.33700774,2301.7,2300.4,2.46219557]
[1769982818833,5.05130581,2301.7,2300.4,2.46219557]
[1769982819735,2.33700774,2301.7,2300.4,2.46219557]
[1769982819936,2.71429807,2301.6,2300.4,2.46219557]
[1769982820240,0.00535927,2301.7,2300.4,2.46219557]
[1769982820428,0.00535927,2301.7,2300.5,2.46219557]
[1769982821435,2.71965734,2301.7,2300.7,2.46219557]
[1769982821636,0.00535927,2301.7,2300.7,2.46219557]
[1769982822134,2.33164847,2302.3,2300.9,2.46219557]
[1769982822331,2.71429807,2302.2,2301.1,2.46219557]
[1769982822736,2.33164847,2302.6,2301.1,2.46219557]
[1769982822936,2.33544474,2302.6,2301.3,2.46219557]
[1769982823137,0.00379627,2302.6,2301.3,2.46219557]
[1769982823442,0.00379627,2302.6,2301.4,2.46219557]
[1769982823742,2.33544474,2302.6,2301.4,2.46219557]
[1769982823944,5.04974281,2302.6,2301.6,2.46219557]
[1769982824143,2.33544474,2302.6,2301.6,2.46219557]
[1769982824344,2.71429807,2302.5,2301.6,2.46219557]
[1769982824536,2.33544474,2302.6,2301.6,2.46219557]
[1769982824740,2.71429807,2302.5,2301.6,2.46219557]
[1769982825042,2.71429807,2302.4,2301.7,2.634]
[1769982825235,2.33164847,2302.2,2301.1,6.37949047]
[1769982825442,5.04594654,2302.2,2301.2,2.634]
[1769982825643,2.71429807,2302.0,2301.2,2.634]
[1769982825841,2.71429807,2301.7,2301.1,0.0032949]
[1769982826044,5.03961182,2302.2,2301.2,2.634]
[1769982826246,5.03961182,2302.2,2301.2,5.02158937]
[1769982826541,2.71429807,2301.9,2301.2,5.02158937]
[1769982826936,2.71429807,2301.8,2301.2,5.02158937]
[1769982827141,2.71429807,2301.9,2301.2,5.02158937]
[1769982827536,2.71429807,2301.8,2301.2,5.02158937]
[1769982827843,2.71429807,2301.9,2301.2,5.02158937]
[1769982828343,2.32531375,2302.2,2301.2,5.02158937]
[1769982828544,2.71429807,2301.8,2301.2,5.02158937]
[1769982829044,2.71429807,2301.6,2301.2,5.02158937]
[1769982829346,2.71429807,2301.8,2301.2,5.02158937]
[1769982829844,2.71429807,2301.6,2301.2,5.02158937]
[1769982830044,2.71429807,2301.8,2301.2,5.02158937]
[1769982830544,2.71074826,2301.5,2301.2,5.02158937]
[1769982830845,2.71074826,2301.8,2301.2,5.02158937]
[1769982831244,2.71074826,2301.6,2301.2,5.02158937]
[1769982831447,2.71074826,2301.8,2301.2,5.02158937]
[1769982831948,2.71074826,2301.6,2301.2,5.02158937]
[1769982832147,2.71074826,2301.8,2301.2,5.02158937]
[1769982832746,2.71074826,2301.6,2301.3,2.38758937]
[1769982832947,2.71074826,2301.8,2301.3,2.38758937]
[1769982833146,2.71074826,2301.7,2301.3,2.38758937]
[1769982833639,2.71074826,2301.5,2301.3,2.38758937]
[1769982833844,2.71074826,2301.7,2301.2,2.634]
[1769982834044,5.03606201,2301.9,2301.3,2.65]